[Event "ITT 1st Parada Jamundi 2022"]
[Site "Jamundi Valle"]
[Date "2022.12.09"]
[Round "7.25"]
[White "Avella Munoz, Andrea"]
[Black "Idrobo, Juan Manuel"]
[Result "0-1"]
[ECO "B12"]
[WhiteElo "1472"]
[BlackElo "1809"]
[Annotator "NA RC COMBH"]
[PlyCount "54"]
[EventDate "2022.12.05"]
[EventType "swiss"]
[EventCountry "COL"]
[SourceTitle "playchess.com"]
[Source "ChessBase"]
[SourceQuality "1"]
[TimeControl "5400+30"]

1. d4 {[%emt 0:08:32]} d6 {[%emt 0:00:17]} 2. e4 {[%emt 0:00:19]} Nd7 {[%emt 0:00:07]} 3. Nf3 {[%emt 0:01:06]} c6 {[%emt 0:00:13]} 4. Bd3 {[%emt 0:00:14]} Qc7 {[%emt 0:00:24]} 5. Nc3 {[%emt 0:01:16]} e5 {[%emt 0:00:13]} 6. O-O {[%emt 0:04:10]} Ngf6 {[%emt 0:00:10]} 7. Ne2 {[%emt 0:04:03]} g6 {[%emt 0:00:34]} 8. b3 {[%emt 0:04:21]} Bg7 {[%emt 0:00:09]} 9. Bb2 {[%emt 0:00:27]} O-O {[%emt 0:00:14]} 10. dxe5 {[%emt 0:00:13]} dxe5 {[%emt 0:00:25]} 11. c4 {[%emt 0:00:48]} b6 {[%emt 0:01:36]} 12. Rc1 {[%emt 0:01:00]} c5 {[%emt 0:04:53]} 13. Nc3 {[%emt 0:01:41]} Bh6 {[%emt 0:06:55]} 14. Nd5 {[%emt 0:05:05]} Nxd5 {[%emt 0:00:49]} 15. exd5 {[%emt 0:00:02]} Bxc1 {[%emt 0:01:43]} 16. Qxc1 {[%emt 0:00:09]} f5 {[%emt 0:04:22]} 17. Qh6 {[%emt 0:02:01]} Re8 {[%emt 0:10:46]} 18. Re1 {[%emt 0:07:52]} Re7 {[%emt 0:12:21]} 19. d6 {[%emt 0:02:24]} Qxd6 {[%emt 0:01:19]} 20. Bxf5 {[%emt 0:00:03]} Bb7 {[%emt 0:04:21]} 21. Ng5 {[%emt 0:46:39]} Nf8 {[%emt 0:23:03]} 22. Ne4 {[%emt 0:04:03]} Bxe4 {[%emt 0:10:27]} 23. Bxe4 {[%emt 0:05:32]} Rae8 {[%emt 0:16:39]} 24. Bd5+ {[%emt 0:00:00]} Kh8 {[%emt 0:00:00]} 25. Bxe5+ {[%emt 0:00:00]} Rxe5 {[%emt 0:00:00]} 26. Rxe5 {[%emt 0:00:00]} Rxe5 {[%emt 0:00:00]} 27. f4 {[%emt 0:01:25]} Rh5 {[%emt 0:02:00]} 0-1

[Event "ITT 1st Parada Jamundi 2022"]
[Site "Jamundi Valle"]
[Date "2022.12.09"]
[Round "7.26"]
[White "Castro Castro, Joaquin"]
[Black "Pena Ramirez, Jatniel"]
[Result "1-0"]
[ECO "B90"]
[WhiteElo "1797"]
[BlackElo "1201"]
[Annotator "NA RC COMBH"]
[PlyCount "43"]
[EventDate "2022.12.05"]
[EventType "swiss"]
[EventCountry "COL"]
[SourceTitle "playchess.com"]
[Source "ChessBase"]
[SourceQuality "1"]
[TimeControl "5400+30"]

1. e4 {[%emt 0:01:36]} c5 {[%emt 0:00:08]} 2. Nf3 {[%emt 0:00:12]} d6 {[%emt 1:31:22]} 3. d4 {[%emt 1:30:12]} cxd4 {[%emt 0:00:30]} 4. Nxd4 {[%emt 0:00:30]} Nf6 {[%emt 0:00:00]} 5. Nc3 {[%emt 0:00:00]} a6 {[%emt 0:01:00]} 6. f3 {[%emt 0:01:00]} e5 {[%emt 0:00:30]} 7. Nb3 {[%emt 0:00:30]} Be6 {[%emt 0:00:30]} 8. Be3 {[%emt 0:00:30]} Nbd7 {[%emt 0:00:30]} 9. g4 {[%emt 0:00:30]} Be7 {[%emt 0:00:00]} 10. g5 {[%emt 0:00:00]} Nh5 {[%emt 0:01:00]} 11. Qd2 {[%emt 0:01:00]} O-O {[%emt 0:00:00]} 12. O-O-O {[%emt 0:00:00]} b5 {[%emt 0:00:00]} 13. Nd5 {[%emt 0:00:00]} Bxd5 {[%emt 0:00:00]} 14. exd5 {[%emt 0:00:00]} Nb6 {[%emt 0:00:00]} 15. Na5 {[%emt 0:00:00]} Rc8 {[%emt 0:00:00]} 16. Nc6 {[%emt 0:00:00]} Rxc6 {[%emt 0:00:00]} 17. dxc6 {[%emt 0:00:00]} Nf4 {[%emt 0:00:00]} 18. h4 {[%emt 0:00:00]} Nfd5 {[%emt 0:00:00]} 19. Bf2 {[%emt 0:00:00]} Qc7 {[%emt 0:00:00]} 20. Bd3 {[%emt 0:00:00]} Qxc6 {[%emt 0:00:00]} 21. Be4 {[%emt 0:00:00]} Rc8 {[%emt 0:00:00]} 22. Bxb6 {[%emt 0:00:00]} 1-0

[Event "ITT 1st Parada Jamundi 2022"]
[Site "Jamundi Valle"]
[Date "2022.12.09"]
[Round "7.28"]
[White "Galan Palacio, Anjaly Daniela"]
[Black "Cajamarca Gordillo, Sebastian Alejandro"]
[Result "0-1"]
[ECO "C56"]
[WhiteElo "1758"]
[BlackElo "1618"]
[Annotator "NA RC COMBH"]
[PlyCount "110"]
[EventDate "2022.12.05"]
[EventType "swiss"]
[EventCountry "COL"]
[SourceTitle "playchess.com"]
[Source "ChessBase"]
[SourceQuality "1"]
[TimeControl "5400+30"]

1. e4 {[%emt 0:01:33]} e5 {[%emt 0:03:01]} 2. Nf3 {[%emt 0:00:27]} Nc6 {[%emt 0:00:06]} 3. d4 {[%emt 0:00:07]} exd4 {[%emt 0:01:13]} 4. Bc4 {[%emt 0:00:19]} Nf6 {[%emt 0:03:52]} 5. e5 {[%emt 0:02:12]} d5 {[%emt 0:01:13]} 6. Bb5 {[%emt 0:04:10]} Ne4 {[%emt 0:04:06]} 7. Nxd4 {[%emt 0:02:46]} Bd7 {[%emt 0:03:34]} 8. Nxc6 {[%emt 0:05:20]} Bxc6 {[%emt 0:01:16]} 9. Bxc6+ {[%emt 0:00:38]} bxc6 {[%emt 0:00:02]} 10. O-O {[%emt 0:01:00]} Bc5 {[%emt 0:00:14]} 11. Qe2 {[%emt 0:02:09]} Rb8 {[%emt 0:04:02]} 12. c3 {[%emt 0:03:19]} Qh4 {[%emt 0:02:02]} 13. b4 {[%emt 0:01:40]} Bb6 {[%emt 0:01:09]} 14. Be3 {[%emt 0:00:13]} O-O {[%emt 0:02:57]} 15. g3 {[%emt 0:02:08]} Qe7 {[%emt 0:02:30]} 16. f3 {[%emt 0:01:39]} Nxc3 {[%emt 0:01:45]} 17. Nxc3 {[%emt 0:01:37]} d4 {[%emt 0:00:35]} 18. Bf2 {[%emt 0:04:41]} dxc3 {[%emt 0:00:07]} 19. a3 {[%emt 0:00:42]} Rfe8 {[%emt 0:01:20]} 20. Rfe1 {[%emt 0:00:28]} Bxf2+ {[%emt 0:02:29]} 21. Kxf2 {[%emt 0:00:16]} c5 {[%emt 0:00:29]} 22. b5 {[%emt 0:05:28]} Qd7 {[%emt 0:00:50]} 23. Rad1 {[%emt 0:07:15]} Qxb5 {[%emt 0:01:44]} 24. Qxb5 {[%emt 0:01:42]} Rxb5 {[%emt 0:00:05]} 25. Rc1 {[%emt 0:00:29]} Rb2+ {[%emt 0:00:42]} 26. Re2 {[%emt 0:00:55]} Rxe2+ {[%emt 0:00:20]} 27. Kxe2 {[%emt 0:00:02]} Rxe5+ {[%emt 0:00:01]} 28. Kd3 {[%emt 0:00:30]} Kf8 {[%emt 0:00:16]} 29. Rxc3 {[%emt 0:00:28]} Ke7 {[%emt 0:01:10]} 30. Kc4 {[%emt 0:00:34]} c6 {[%emt 0:00:31]} 31. Rb3 {[%emt 0:01:37]} Rd5 {[%emt 0:03:00]} 32. Rb2 {[%emt 0:03:17]} g5 {[%emt 0:13:40]} 33. Rb8 {[%emt 0:01:23]} Rf5 {[%emt 0:02:13]} 34. Rb3 {[%emt 0:01:47]} Kd6 {[%emt 0:00:49]} 35. Re3 {[%emt 0:01:55]} h5 {[%emt 0:02:02]} 36. h3 {[%emt 0:03:04]} h4 {[%emt 0:00:56]} 37. g4 {[%emt 0:07:24]} Rf4+ {[%emt 0:00:16]} 38. Kc3 {[%emt 0:01:23]} Kd5 {[%emt 0:01:41]} 39. Rd3+ {[%emt 0:01:04]} Rd4 {[%emt 0:00:10]} 40. Re3 {[%emt 0:00:06]} Rc4+ {[%emt 0:00:59]} 41. Kb3 {[%emt 0:00:47]} Rd4 {[%emt 0:01:04]} 42. Kc3 {[%emt 0:00:49]} c4 {[%emt 0:00:58]} 43. Re7 {[%emt 0:02:05]} Rd3+ {[%emt 0:00:09]} 44. Kb4 {[%emt 0:00:57]} Rb3+ {[%emt 0:00:06]} 45. Ka4 {[%emt 0:00:11]} Rxf3 {[%emt 0:00:12]} 46. Rxa7 {[%emt 0:00:11]} Rxh3 {[%emt 0:00:15]} 47. Rxf7 {[%emt 0:00:13]} Re3 {[%emt 0:00:50]} 48. Rd7+ {[%emt 0:01:01]} Kc5 {[%emt 0:00:37]} 49. Ra7 {[%emt 0:02:24]} Rb3 {[%emt 0:01:08]} 50. Rf7 {[%emt 0:01:11]} Rd3 {[%emt 0:01:35]} 51. Ra7 {[%emt 0:00:17]} Rd5 {[%emt 0:00:05]} 52. Ra5+ {[%emt 0:00:50]} Kd4 {[%emt 0:00:15]} 53. Ra7 {[%emt 0:00:17]} Kd3 {[%emt 0:00:13]} 54. Rf7 {[%emt 0:00:11]} c3 {[%emt 0:00:27]} 55. Rf3+ {[%emt 0:02:03]} Kc2 {[%emt 0:40:39]} 0-1

[Event "ITT 1st Parada Jamundi 2022"]
[Site "Jamundi Valle"]
[Date "2022.12.09"]
[Round "7.29"]
[White "Caro Gallego, James Stiven"]
[Black "Rodriguez Vila, Andres"]
[Result "1-0"]
[ECO "A40"]
[WhiteElo "1884"]
[BlackElo "2442"]
[Annotator "TA"]
[PlyCount "61"]
[EventDate "2022.12.05"]
[EventType "swiss"]
[EventCountry "COL"]
[SourceTitle "playchess.com"]
[Source "ChessBase"]
[SourceQuality "1"]
[TimeControl "5400+30"]

{[%evp 15,61,44,56,49,53,13,94,97,93,91,91,91,95,103,95,71,89,50,97,57,166,96,602,589,802,586,550,611,591,595,567,560,529,481,812,793,1558,1447,6836,1645,1598,1490,29981,29982,29995,29996,29998,503]} 1. d4 {[%emt 0:28:26]} e5 {[%emt 0:01:14]} 2. dxe5 {[%emt 0:01:21]} Nc6 {[%emt 0:00:21]} 3. Nf3 {[%emt 0:00:26]} Qe7 {[%emt 0:00:21]} 4. g3 {[%emt 0:00:25]} Nxe5 {[%emt 0:00:31]} 5. Nxe5 {[%emt 0:00:15]} Qxe5 {[%emt 0:00:12]} 6. Bg2 {[%emt 0:01:11]} Nf6 {[%emt 0:00:58]} 7. a3 {[%emt 0:00:34]} Bc5 {[%emt 0:00:36]} 8. Nc3 {[%emt 0:00:26][%cal Bb1c3,Bc3e4,Be4d6][%mdl 32]} c6 {[%emt 0:00:32]} 9. Bf4 {[%emt 0:00:42] Prevents d5. A40: Unusual replies to 1 d4.} Qe6 {[%emt 0:02:29] [#]} 10. Qd3 $146 {[%emt 0:01:49]} ({Predecessor:} 10. b4 Bb6 11. O-O O-O 12. Na4 Bd8 13. Nc5 Qc4 14. Re1 Be7 15. Nb3 d5 16. Nd2 Qc3 {1-0 (32) Brzezinska,M-Studzinska,K (1745) Augustow 1996}) 10... Ng4 {[%emt 0:02:47]} (10... O-O $11) 11. Ne4 $16 {[%emt 0:00:41] White is better.} Be7 {[%emt 0:00:25] [#]} 12. Nd6+ $1 {[%emt 0:00:46]} Bxd6 {[%emt 0:00:29]} 13. Bxd6 {[%emt 0:00:18]} Ne5 {[%emt 0:02:32]} 14. Qd4 {[%emt 0:01:10]} f6 {[%emt 0:01:00]} 15. b3 {[%emt 0:00:30] White is more active.} b6 {[%emt 0:01:53]} 16. O-O {[%emt 0:00:22]} (16. O-O-O {simplifies} Nf7 17. Rd3 Qxd6 18. Qxd6 Nxd6 19. Rxd6 Rf8 20. Rhd1) 16... Ba6 {[%emt 0:00:56]} (16... Nf7 $14 17. Rad1 Ba6) 17. Rfe1 {[%emt 0:00:29]} Rc8 {[%emt 0:00:56] [#]} (17... Bb7 $14) 18. f4 {[%emt 0:00:27]} (18. e4 $1 $18) 18... Ng4 $2 {[%emt 0:03:18][%mdl 8192] This move loses the game for Black.} (18... Nf7 $16) 19. e4 $18 {[%emt 0:00:15]} Kf7 {[%emt 0:00:51]} 20. h3 {[%emt 0:00:26]} Nh6 {[%emt 0:00:11]} 21. f5 {[%emt 0:00:35]} Qe8 {[%emt 0:00:45]} 22. g4 {[%emt 0:00:23] Hoping for e5.} Qd8 {[%emt 0:01:30]} 23. e5 {[%emt 0:00:29]} Re8 {[%emt 0:00:24]} 24. exf6 {[%emt 0:00:27]} gxf6 {[%emt 0:01:55]} (24... Qxf6 $142 25. Bd5+ cxd5 26. Qxd5+ Re6) 25. Kf2 {[%emt 0:01:02]} b5 {[%emt 0:01:29]} 26. Rxe8 {[%emt 0:00:20]} Kxe8 {[%emt 0:00:52]} 27. Re1+ {[%emt 0:00:11]} (27. Qe3+ $142 Kf7 28. Qxh6) 27... Kf7 {[%emt 0:00:05]} 28. Re7+ {[%emt 0:02:12]} Kg8 {[%emt 0:00:31]} 29. Qxf6 {[%emt 0:01:19][%csl Ge7][%cal Rf6g7] White mates.} Qb6+ {[%emt 0:00:08]} 30. Kg3 {[%emt 0:00:56][%csl Ge7][%cal Rf6g7]} Nf7 {[%emt 0:01:12]} 31. Re1 {Weighted Error Value: White=0.29 (precise) /Black=0.69} (31. Qxf7+ $142 Kh8 32. Qxh7#) 1-0

[Event "ITT 1st Parada Jamundi 2022"]
[Site "Jamundi Valle"]
[Date "2022.12.10"]
[Round "8.1"]
[White "Henriquez Villagra, Cristobal"]
[Black "Aguero Jimenez, Luis Lazaro"]
[Result "1-0"]
[ECO "C42"]
[WhiteElo "2587"]
[BlackElo "2465"]
[Annotator "TA"]
[PlyCount "125"]
[EventDate "2022.12.05"]
[EventType "swiss"]
[EventCountry "COL"]
[SourceTitle "playchess.com"]
[Source "ChessBase"]
[SourceQuality "1"]
[TimeControl "5400+30"]

{[%evp 20,125,47,8,17,18,22,18,12,-8,0,0,14,0,0,-8,0,0,0,0,22,0,0,7,7,9,0,0,0,0,0,0,0,0,35,39,28,30,51,47,52,51,52,52,54,56,54,28,51,42,59,46,67,64,59,58,68,68,107,65,72,66,135,65,166,118,156,74,125,52,74,70,73,63,128,128,242,125,225,218,309,114,117,121,131,130,126,110,352,352,352,396,341,320,753,507,29977,29978,29978,29979,29979,29978,29980,29981,29981,29982,29982,29983]} 1. e4 e5 2. Nf3 Nf6 3. Nxe5 d6 4. Nf3 Nxe4 5. c4 {[%emt 0:03:35]} Be7 {[%emt 0:01:46]} 6. d4 {[%emt 0:01:07]} d5 {[%emt 1:31:44]} 7. Nc3 Nxc3 {[%emt 0:00:00]} 8. bxc3 {[%emt 0:01:43]} O-O {[%emt 0:01:00]} 9. Bd3 dxc4 10. Bxc4 Nc6 11. O-O Bf5 {C42: Petroff Defence: 3 Nxe5 and unusual White 3rd moves.} 12. Re1 Bd6 13. h3 h6 {[%emt 0:00:00] The position is equal.} 14. Bb5 {[%emt 0:02:27]} Qf6 {[%emt 0:00:00] [#]} 15. Be3 $146 {[%emt 0:37:23]} ({Predecessor:} 15. Bd3 Rad8 16. Be3 Rfe8 17. Bxf5 Qxf5 18. Qb1 Qxb1 19. Raxb1 b6 20. c4 g5 21. g4 Bf8 22. d5 Ne5 23. Nxe5 Rxe5 24. Bd4 Rxe1+ 25. Rxe1 b5 26. Bf6 Rd6 {½-½ (24) Kostic,V (2297)-Saurabh,A (2304) Novi Sad 2021}) 15... a6 {[%emt 0:00:00]} 16. Bd3 {[%emt 0:02:08]} Rfe8 {[%emt 0:00:00]} 17. a4 {[%emt 0:02:53]} Ne7 {[%emt 0:00:00]} 18. Bxf5 {[%emt 0:05:42]} Nxf5 {[%emt 0:05:00]} 19. Qd3 Re7 20. Rab1 b6 {[%emt 0:00:00]} 21. Bd2 {[%emt 0:01:51]} (21. Rbd1 {simplifies} Nxe3 22. Rxe3 a5 23. Rxe7 Qxe7 24. Qb5) 21... Nh4 {[%emt 0:00:00]} (21... Rxe1+ {simplifies} 22. Rxe1 a5 23. Qe4 Rd8) 22. Nxh4 {[%emt 0:10:03]} Qxh4 {[%emt 0:00:00]} (22... Rxe1+ {simplifies} 23. Rxe1 Qxh4 24. Qf5 Qd8) 23. Kf1 {[%emt 0:00:12]} Qf6 {[%emt 0:02:30]} 24. Ra1 a5 25. Rxe7 Qxe7 26. Qb5 Qe8 27. Qxe8+ Rxe8 $14 {[%mdl 4096] Endgame KRB-KRB} 28. Rb1 Be7 29. Rb5 Rd8 30. Ke2 Kf8 31. g3 Ke8 32. h4 Kd7 33. Be3 Kc6 34. c4 Bd6 35. Rf5 Rf8 36. h5 Kd7 37. Kd3 Bb4 38. Rd5+ Kc8 39. Rb5 Kd7 40. g4 Bd6 (40... Rc8 $14) 41. Rf5 ({Better is} 41. c5 $16 bxc5 42. dxc5) 41... Bb4 (41... Be7 $14) 42. Rd5+ (42. g5 $18) 42... Kc8 43. Rb5 (43. c5 $142) 43... Kd7 (43... Rd8 $142) 44. Rf5 {White is more active.} (44. g5 $1 $16 {[%cal Rg5h6]}) 44... f6 45. Rf4 Rb8 46. d5 {Black must now prevent Re4.} Bd6 (46... Rc8 $14) 47. Re4 $16 Be5 (47... f5 $16 48. gxf5 Rf8) 48. Bd4 (48. f4 $18 Bd6 49. Re6) 48... Bxd4 (48... Rf8 $16) 49. Kxd4 {Hoping for Re6. KR-KR} Rf8 {[#]} (49... c6 $142 50. Re6 cxd5 51. Kxd5 Kd8) 50. f3 $2 (50. Re6 $1 $18 {is the precise move to win.}) 50... Rf7 51. Re6 f5 52. Rg6 {Threatens to win with g5.} fxg4 53. fxg4 {And now c5 would win.} ({Don't take} 53. Rxg4 Kd8 $14) 53... Re7 $2 {[#] Loses the game.} (53... Rf4+ $16 54. Ke5 Rf7) 54. c5 $1 $18 bxc5+ 55. Kxc5 Kc8 56. Kb5 Re5 $2 (56... Rd7 57. Kc6 (57. Kxa5 Rxd5+ 58. Kb4 Rd7 $16) 57... Rd8 58. Rxg7 Rd6+ 59. Kc5 Rf6) 57. Kc6 {White wants to mate with Re6.} ({Not} 57. Rxg7 Rxd5+ 58. Ka6 Re5 $18) 57... Re7 (57... Re1 $18 58. Rxg7 Rc1+ 59. Kb5 Rd1) 58. Re6 {White mates.} Rd7 59. Re8+ Rd8 60. Rxd8+ Kxd8 61. Kb5 Kd7 62. Kxa5 Kd6 {[%emt 0:00:00]} 63. Kb5 {[%emt 0:25:33] Weighted Error Value: White=0.13 (very precise) /Black=0.31} 1-0

[Event "ITT 1st Parada Jamundi 2022"]
[Site "Jamundi Valle"]
[Date "2022.12.10"]
[Round "8.2"]
[White "Cardoso Cardoso, Jose Gabriel"]
[Black "Avila Pavas, Santiago"]
[Result "1-0"]
[ECO "A58"]
[WhiteElo "2483"]
[BlackElo "2461"]
[Annotator "TA"]
[PlyCount "107"]
[EventDate "2022.12.05"]
[EventType "swiss"]
[EventCountry "COL"]
[SourceTitle "playchess.com"]
[Source "ChessBase"]
[SourceQuality "1"]
[TimeControl "5400+30"]

{[%evp 9,107,39,33,33,32,36,50,44,50,49,53,47,42,43,54,54,61,55,66,56,133,125,230,221,214,181,167,172,166,160,158,147,156,133,121,122,107,106,110,114,115,105,118,110,111,110,111,111,112,114,113,119,122,58,97,100,90,31,31,31,30,29,72,90,72,19,113,113,215,218,174,118,154,112,280,275,279,279,275,274,255,252,410,408,452,442,815,785,785,785,1571,648,2675,2337,29983,29984,29984,29985,29987,29988]} 1. d4 {[%emt 0:16:08]} Nf6 {[%emt 0:18:51]} 2. c4 c5 {[%emt 0:00:30]} 3. d5 {[%emt 0:01:00]} b5 {[%emt 0:00:30]} 4. cxb5 {[%emt 0:00:30]} a6 {[%emt 0:00:30]} 5. bxa6 {[%emt 0:00:30]} e6 {[%emt 0:00:30]} 6. Nc3 {[%emt 0:00:30] A58: Benko/Volga Gambit: Lines with 5 bxa6.} exd5 {[%emt 0:00:30]} 7. Nxd5 {[%emt 0:00:30][%cal Oe2e4]} Be7 {[%emt 0:00:30]} 8. Nxe7 {[%emt 0:00:30] White is slightly better.} (8. Nf3 {simplifies} Nxd5 9. Qxd5 Rxa6 10. Bd2) 8... Qxe7 {[%emt 0:00:30]} 9. Bf4 {[%emt 0:00:30]} d5 {[%emt 0:00:30]} 10. e3 {[%emt 0:00:30]} O-O {[%emt 0:00:30]} 11. Nf3 {[%emt 0:00:30]} Rd8 {[%emt 0:00:30]} 12. a3 {[%emt 0:00:30] [#]} (12. Be2 {simplifies} Bxa6 13. O-O Nc6 14. Bg5) 12... d4 $146 {[%emt 0:00:30]} ({Predecessor:} 12... Ne4 13. Bb5 Bxa6 14. Bxa6 Rxa6 15. O-O Nc6 16. Nd2 Nxd2 17. Qxd2 Na5 18. Qc3 c4 {½-½ (27) Hartl,H (2450)-Kuntze,A (2384) ICCF email 2020}) 13. Qb3 {[%emt 0:00:30]} dxe3 {[%emt 0:00:30]} 14. fxe3 {[%emt 0:00:30]} (14. Bxb8 $2 {too greedy.} Ng4 15. fxe3 Rxb8 $1 $19 {[%mdl 512]}) 14... Nc6 {[%emt 0:00:30] Prevents Ne5.} (14... Nbd7 $14) 15. Bb5 $16 {[%emt 0:00:30]} Be6 {[%emt 0:00:30]} (15... Nd4 $16 16. Nxd4 cxd4) 16. Qc2 $1 $18 {[%emt 0:00:30]} Bd7 {[%emt 0:00:30][%cal Oc6b4]} 17. O-O {[%emt 0:00:30]} Nb4 {[%emt 0:00:30]} 18. axb4 {[%emt 0:00:30]} Bxb5 {[%emt 0:00:30]} 19. Qxc5 {[%emt 0:00:30]} Qe8 {[%emt 0:00:30][%cal Ob5a6]} 20. Rfd1 {[%emt 0:00:30] Threatens to win with Rxd8.} Bxa6 {[%emt 0:00:30]} 21. Nd4 {[%emt 0:00:30]} Bb7 {[%emt 0:00:30]} 22. Rxa8 {[%emt 0:00:30]} Bxa8 {[%emt 0:00:30]} 23. h3 {[%emt 0:00:30]} (23. Ra1 {simplifies} Qe4 24. Qc2 Qxc2 25. Nxc2 Bb7 26. Be5) 23... Qe4 {[%emt 0:00:30][%csl Ga8][%cal Re4g2]} 24. Rd2 {[%emt 0:00:30][%cal Od4f5]} h6 {[%emt 0:00:30]} 25. Kh2 {[%emt 0:00:30]} Kh7 {[%emt 0:00:30]} 26. Qe5 {[%emt 0:00:30] Inhibits Nd5.} Qg6 {[%emt 0:00:30]} 27. Qa5 {[%emt 0:00:30]} Re8 {[%emt 0:00:30]} 28. Qf5 {[%emt 0:00:30]} Nd5 {[%emt 0:00:30]} 29. b5 {[%emt 0:00:30]} Qxf5 {[%emt 0:00:30]} 30. Nxf5 {[%emt 0:00:30]} g5 {[%emt 0:00:30]} 31. Bg3 {[%emt 0:00:30]} (31. Bd6 $16) 31... Nxe3 {[%emt 0:00:30]} 32. Nxe3 {[%emt 0:00:30]} Rxe3 $14 {[%emt 0:00:30][%mdl 4096] Endgame [#] KRB-KRB} 33. b6 {[%emt 0:00:30]} ({Better is} 33. b4 $1 $16) 33... Rb3 $1 {[%emt 0:00:30]} 34. Bf2 {[%emt 0:00:30]} Be4 {[%emt 0:00:30]} 35. Kg1 {[%emt 0:00:30]} Rb4 {[%emt 0:00:30]} 36. Bc5 {[%emt 0:00:30]} Rb3 {[%emt 0:00:30]} 37. Kf2 {[%emt 0:00:30]} (37. Rd7 $16) 37... Kg7 {[%emt 0:00:30] [#]} (37... h5 $11 {keeps the balance.}) 38. Rd6 $1 $16 {[%emt 0:00:30]} f5 {[%emt 0:00:30]} (38... Rxb2+ $2 39. Ke3 $18) (38... h5 $16) 39. Bd4+ $18 {[%emt 0:00:30]} Kh7 {[%emt 0:00:30]} 40. Rd7+ {[%emt 0:00:30]} (40. Re6 $18) 40... Kg8 {[%emt 0:00:30]} 41. Re7 {[%emt 0:00:30]} Bc6 $2 {[%emt 0:00:30] This costs Black the game.} (41... Rb4 $16) 42. Re6 {[%emt 0:00:30][%csl LRc6,LRh6]} Be4 {[%emt 0:00:30]} 43. Rxh6 {[%emt 0:00:30]} Kf7 {[%emt 0:00:30]} 44. Rf6+ {[%emt 0:00:30]} Ke8 {[%emt 0:00:30]} 45. Rg6 {[%emt 0:00:30]} Kd7 $2 {[%emt 0:00:30]} (45... Rb4 {keeps fighting.}) 46. Rxg5 {[%emt 0:00:30]} Rb4 {[%emt 0:00:30]} 47. Ke3 {[%emt 0:00:30]} Ke6 {[%emt 0:00:30]} (47... Bb1 $142 48. Bc5 Rb3+ 49. Kd4 Rxb2 50. Rg7+ Ke6) 48. Bc3 {[%emt 0:00:30]} Rb5 {[%emt 0:00:30]} 49. h4 {[%emt 0:00:30][%cal Bh3h4,Bh4h5,Bh5h6][%mdl 32] h5 is the strong threat.} Rd5 {[%emt 0:00:30]} 50. Bd4 {[%emt 0:00:30]} Rb5 {[%emt 0:00:30]} 51. h5 {[%emt 0:00:30] White wants to mate with h6.} f4+ {[%emt 0:00:30]} 52. Kxf4 {[%emt 0:00:30] White mates.} Rxg5 {[%emt 0:00:30]} 53. Kxg5 {[%emt 0:00:30]} Bxg2 {[%emt 0:00:30]} 54. h6 {[%emt 0:00:30] Weighted Error Value: White=0.16 (very precise) /Black=0.36} 1-0

[Event "ITT 1st Parada Jamundi 2022"]
[Site "Jamundi Valle"]
[Date "2022.12.09"]
[Round "8.3"]
[White "Rios, Cristhian Camilo"]
[Black "Mirzoev, Azer"]
[Result "1/2-1/2"]
[ECO "C01"]
[WhiteElo "2456"]
[BlackElo "2462"]
[Annotator "TA"]
[PlyCount "21"]
[EventDate "2022.12.05"]
[EventType "swiss"]
[EventCountry "COL"]
[SourceTitle "playchess.com"]
[Source "ChessBase"]
[SourceQuality "1"]
[TimeControl "5400+30"]

{[%evp 9,21,-10,33,17,10,12,10,12,15,16,9,10,15,20]} 1. e4 {[%emt 0:09:17]} e6 {[%emt 0:00:31]} 2. d4 {[%emt 0:00:10]} d5 {[%emt 0:00:46]} 3. exd5 {[%emt 0:00:07]} exd5 {[%emt 0:00:20]} 4. Bd3 {[%emt 0:00:06]} Nf6 {[%emt 0:00:26]} 5. Qe2+ {[%emt 0:00:17]} Qe7 {[%emt 0:00:43]} 6. Qxe7+ {[%emt 0:00:08] C01: French: Exchange Variation.} Bxe7 {[%emt 0:00:26] The position is equal.} 7. Bf4 {[%emt 0:00:07]} c6 {[%emt 0:00:11]} 8. Nd2 {[%emt 0:00:11] [#]} O-O $146 {[%emt 0:00:07]} ({Predecessor:} 8... Bg4 9. f3 Be6 10. O-O-O Nbd7 {½-½ (10) Cabarkapa,N (2432)-Farkas,T (2315) Novi Sad 2017}) 9. Ngf3 {[%emt 0:00:09]} Nbd7 10. O-O {[%emt 0:00:07]} Re8 {[%emt 0:00:13]} 11. Rfe1 {[%emt 0:00:09] Not much happened in this game.   Weighted Error Value: White=0.03 (flawless) /Black=0.10 (very precise)} 1/2-1/2